fUSD/lending_fUSD_20250421
["ID","MTS","AMOUNT","RATE_DAILY","PERIOD"]
[358572525,1745273461054,-901.45,0.00043835,7]
[358572526,1745273461063,-2820.63,0.00043835,7]
[358572527,1745273461072,-2820.63,0.00043835,7]
[358572528,1745273461082,-2820.63,0.00043835,7]
[358572529,1745273461091,-2820.63,0.00043835,7]
[358572530,1745273461100,-2820.63,0.00043835,7]
[358572531,1745273461109,-2820.63,0.00043835,7]
[358572532,1745273461118,-2820.83,0.00043835,7]
[358572533,1745273461128,-1047.72,0.00043835,7]
[358572534,1745273461137,-603.15575965,0.00043835,7]
[358572535,1745273461146,-996.82,0.00043835,7]
[358572536,1745273461156,-500.0,0.00043835,7]
[358572537,1745273461165,-500.0,0.00043835,7]
[358572538,1745273461174,-555.60651194,0.00043835,7]
[358572539,1745273461183,-500.0,0.00043835,7]
[358572540,1745273461192,-500.0,0.00043835,7]
[358572541,1745273461202,-500.0,0.00043835,7]
[358572542,1745273461211,-500.0,0.00043835,7]
[358572543,1745273461220,-500.0,0.00043835,7]
[358572544,1745273461229,-500.0,0.00043835,7]
[358572545,1745273461238,-1136.8,0.00043835,7]
[358572546,1745273461247,-1393.67,0.00043835,7]
[358572547,1745273461257,-919.49,0.00043835,7]
[358572548,1745273461266,-500.0,0.00043835,7]
[358572549,1745273461275,-1469.516003,0.00043835,14]
[358572550,1745273461284,-1952.74,0.00043835,7]
[358572551,1745273461294,-1469.516003,0.00043835,14]
[358572552,1745273461303,-580.4556801,0.00043835,7]
[358572553,1745273461312,-500.0,0.00043835,2]
[358572554,1745273461321,-520.39085282,0.00043835,7]
[358572555,1745273461331,-500.0,0.00043835,7]
[358572556,1745273461340,-500.0,0.00043835,7]
[358572557,1745273461349,-500.0,0.00043835,7]
[358572558,1745273461358,-500.0,0.00043835,7]
[358572559,1745273461367,-500.0,0.00043835,7]
[358572560,1745273461378,-1469.516003,0.00043835,14]
[358572561,1745273461390,-3067.74,0.00043835,7]
[358572562,1745273461400,-500.0,0.00043835,7]
[358572563,1745273461409,-1469.516003,0.00043835,14]
[358572564,1745273461418,-500.0,0.00043835,7]
[358572565,1745273461428,-500.0,0.00043835,7]
[358572566,1745273461437,-500.0,0.00043835,7]
[358572567,1745273461447,-500.0,0.00043835,7]
[358572568,1745273461456,-1668.15,0.00043835,7]
[358572569,1745273461465,-500.0,0.00043835,7]
[358572570,1745273461476,-500.0,0.00043835,7]
[358572571,1745273461486,-1022.68,0.00043835,7]
[358572572,1745273461495,-500.0,0.00043835,7]
[358572573,1745273461504,-896.677004,0.00043835,14]
[358572574,1745273461513,-896.677004,0.00043835,14]
[358572575,1745273461522,-500.0,0.00043835,7]
[358572576,1745273461531,-500.0,0.00043835,7]
[358572577,1745273461541,-662.83,0.00043835,7]
[358572578,1745273461551,-400.89218566,0.00043835,7]
[358572579,1745273461560,-500.0,0.00043835,7]
[358572580,1745273461570,-896.677004,0.00043835,14]
[358572581,1745273461579,-896.677004,0.00043835,14]
[358572582,1745273461588,-500.0,0.00043835,7]
[358572583,1745273461598,-500.0,0.00043835,7]
[358572584,1745273461607,-1574.74,0.00043835,7]
[358572585,1745273461616,-500.0,0.00043835,7]
[358572586,1745273461625,-1020.13,0.00043835,7]
[358572587,1745273461635,-500.0,0.00043835,7]
[358572588,1745273461644,-500.0,0.00043835,7]
[358572589,1745273461653,-574.9,0.00043835,7]
[358572590,1745273461663,-500.0,0.00043835,7]
[358572591,1745273461672,-500.0,0.00043835,7]
[358572592,1745273461681,-500.0,0.00043835,7]
[358572593,1745273461691,-981.52,0.00043835,7]
[358572594,1745273461700,-956.86,0.00043835,7]
[358572595,1745273461862,-673.68,0.00043835,7]
[358572596,1745273461877,-151.0,0.00043835,14]
[358572597,1745273461886,-500.0,0.00043835,7]
[358572598,1745273461896,-1000.0,0.00043835,7]
[358572599,1745273461905,-151.0,0.00043835,14]
[358572600,1745273461915,-500.0,0.00043835,7]
[358572601,1745273461924,-202.82236561,0.00043835,7]
[358572602,1745273461934,-163.20272186,0.00043835,7]
[358572603,1745273461944,-500.0,0.00043835,7]
[358572604,1745273461954,-1117.56,0.00043835,7]
[358572605,1745273461964,-500.0,0.00043835,7]
[358572606,1745273461974,-500.0,0.00043835,7]
[358572607,1745273461984,-500.0,0.00043835,7]
[358572608,1745273461994,-500.0,0.00043835,7]
[358572609,1745273462003,-1471.8,0.00043835,7]
[358572610,1745273462013,-500.0,0.00043835,7]
[358572611,1745273462022,-500.0,0.00043835,7]
[358572612,1745273462031,-1450.05,0.00043835,7]
[358572613,1745273462041,-1910.22,0.00043835,7]
[358572614,1745273462050,-500.0,0.00043835,7]
[358572615,1745273462059,-500.0,0.00043835,7]
[358572616,1745273462069,-500.0,0.00043835,7]
[358572617,1745273462079,-500.0,0.00043835,7]
[358572618,1745273462088,-997.29,0.00043835,7]
[358572619,1745273462098,-500.0,0.00043835,7]
[358572620,1745273462107,-500.0,0.00043835,7]
[358572621,1745273462118,-500.0,0.00043835,7]
[358572622,1745273462128,-500.0,0.00043835,7]
[358572623,1745273462138,-525.77,0.00043835,7]
[358572624,1745273462148,-500.0,0.00043835,7]
[358572625,1745273462157,-1056.06,0.00043835,7]
[358572626,1745273462167,-3115.83,0.00043835,7]
[358572627,1745273462176,-3275.5,0.00043835,7]
[358572628,1745273462185,-1074.12,0.00043835,7]
[358572629,1745273462195,-506.11782053,0.00043835,7]
[358572630,1745273462205,-1721.58,0.00043835,7]
[358572631,1745273462214,-500.0,0.00043835,7]
[358572632,1745273462223,-500.0,0.00043835,7]
[358572633,1745273462234,-500.0,0.00043835,7]
[358572634,1745273462244,-500.0,0.00043835,7]
[358572635,1745273462254,-500.0,0.00043835,7]
[358572636,1745273462263,-1000.0,0.00043835,7]
[358572637,1745273462272,-500.0,0.00043835,7]
[358572638,1745273462283,-500.0,0.00043835,7]
[358572639,1745273462292,-500.0,0.00043835,7]
[358572640,1745273462302,-500.0,0.00043835,7]
[358572641,1745273462312,-500.0,0.00043835,7]
[358572642,1745273462321,-500.0,0.00043835,7]
[358572643,1745273462331,-500.0,0.00043835,7]
[358572644,1745273462340,-1422.93,0.00043835,7]
[358572645,1745273462351,-500.0,0.00043835,7]
[358572646,1745273462360,-834.44,0.00043835,7]
[358572647,1745273462371,-500.0,0.00043835,7]
[358572648,1745273462384,-500.0,0.00043835,7]
[358572649,1745273462394,-500.0,0.00043835,7]
[358572650,1745273462403,-743.09,0.00043835,7]
[358572651,1745273462414,-502.04150899,0.00043835,7]
[358572652,1745273462423,-500.0,0.00043835,7]
[358572653,1745273462433,-2831.35,0.00043835,7]
[358572654,1745273462442,-3209.48,0.00043835,7]
[358572655,1745273462451,-500.0,0.00043835,7]
[358572656,1745273462462,-500.0,0.00043835,7]
[358572657,1745273462472,-500.0,0.00043835,7]
[358572658,1745273462482,-507.35042071,0.00043835,7]
[358572659,1745273462491,-671.48,0.00043835,7]
[358572660,1745273462500,-500.0,0.00043835,7]
[358572661,1745273462510,-509.15819936,0.00043835,7]
[358572662,1745273462519,-500.0,0.00043835,7]
[358572663,1745273462528,-500.0,0.00043835,7]
[358572664,1745273462538,-583.29,0.00043835,7]
[358572665,1745273462547,-500.0,0.00043835,7]
[358572666,1745273462557,-500.0,0.00043835,7]
[358572667,1745273462566,-153.532334,0.00043835,14]
[358572668,1745273462575,-576.32409635,0.00043835,7]
[358572669,1745273462584,-500.0,0.00043835,7]
[358572670,1745273462593,-151.0,0.00043835,14]
[358572671,1745273462602,-151.0,0.00043835,14]
[358572672,1745273462611,-973.67,0.00043835,7]
[358572673,1745273462621,-500.0,0.00043835,7]
[358572674,1745273462630,-1070.05,0.00043835,7]
[358572675,1745273462640,-500.0,0.00043835,7]
[358572676,1745273462649,-1375.34,0.00043835,7]
[358572677,1745273462659,-529.9803303,0.00043835,7]
[358572678,1745273462667,-500.0,0.00043835,7]
[358572679,1745273462677,-500.0,0.00043835,7]
[358572680,1745273462686,-500.0,0.00043835,7]
[358572681,1745273462695,-501.72196206,0.00043835,7]
[358572682,1745273462705,-7001.07,0.00043835,7]
[358572683,1745273462714,-2437.85,0.00043835,7]
[358572684,1745273462723,-500.0,0.00043835,7]
[358572685,1745273462734,-500.0,0.00043835,7]
[358572686,1745273462743,-780.148884,0.00043835,14]
[358572687,1745273462753,-780.148884,0.00043835,14]
[358572688,1745273462762,-500.0,0.00043835,7]
[358572689,1745273462771,-513.65292952,0.00043835,7]
[358572690,1745273462781,-1522.45,0.00043835,7]
[358572691,1745273462790,-2289.63,0.00043835,7]
[358572692,1745273462800,-500.0,0.00043835,7]
[358572693,1745273462809,-274.417181,0.00043835,14]
[358572694,1745273462818,-500.0,0.00043835,7]
[358572695,1745273462827,-780.148884,0.00043835,14]
[358572696,1745273462836,-298.908777,0.00043835,14]
[358572697,1745273462846,-780.148884,0.00043835,14]
[358572698,1745273462855,-829.97,0.00043835,7]
[358572699,1745273462865,-500.0,0.00043835,7]
[358572700,1745273462874,-500.0,0.00043835,7]
[358572701,1745273462883,-148396.62,0.00043835,7]
[358572702,1745273462892,-274.417181,0.00043835,14]
[358572703,1745273462901,-1573.28,0.00043835,7]
[358572704,1745273462910,-783.77,0.00043835,7]
[358572705,1745273462920,-500.0,0.00043835,7]
[358572706,1745273462929,-500.0,0.00043835,7]
[358572707,1745273462940,-2454.7,0.00043835,7]
[358572708,1745273462949,-500.0,0.00043835,7]
[358572709,1745273462959,-500.0,0.00043835,7]
[358572710,1745273462968,-290.057905,0.00043835,14]
[358572711,1745273462978,-500.0,0.00043835,7]
[358572712,1745273462988,-527.57,0.00043835,7]
[358572713,1745273462998,-612.25,0.00043835,7]
[358572714,1745273463007,-1343.12,0.00043835,7]
[358572715,1745273463017,-500.0,0.00043835,7]
[358572716,1745273463027,-2236.11,0.00043835,7]
[358572717,1745273463036,-151.0,0.00043835,14]
[358572718,1745273463046,-500.0,0.00043835,7]
[358572719,1745273463056,-500.0,0.00043835,7]
[358572720,1745273463065,-500.0,0.00043835,7]
[358572721,1745273463075,-963.95,0.00043835,7]
[358572722,1745273463085,-997.67,0.00043835,7]
[358572723,1745273463095,-500.0,0.00043835,7]
[358572724,1745273463104,-1289.89,0.00043835,7]
[358572725,1745273463114,-655.96,0.00043835,7]
[358572726,1745273463124,-500.0,0.00043835,7]
[358572727,1745273463134,-500.0,0.00043835,7]
[358572728,1745273463144,-569.75,0.00043835,7]
[358572729,1745273463154,-678.03,0.00043835,7]
[358572730,1745273463165,-169.70041414,0.00043835,7]
[358572731,1745273463174,-500.0,0.00043835,7]
[358572732,1745273463184,-1596.74,0.00043835,7]
[358572733,1745273463194,-207.49750375,0.00043835,7]
[358572734,1745273463203,-3240.43,0.00043835,7]
[358572735,1745273463213,-500.0,0.00043835,7]
[358572736,1745273463223,-500.0,0.00043835,7]
[358572737,1745273463232,-586.41532433,0.00043835,7]
[358572738,1745273463243,-209.126942,0.00043835,14]
[358572739,1745273463252,-561.14074345,0.00043835,7]
[358572740,1745273463262,-500.0,0.00043835,7]
[358572741,1745273463272,-518.73,0.00043835,7]
[358572742,1745273463281,-500.0,0.00043835,7]
[358572743,1745273463292,-542.88099926,0.00043835,7]
[358572744,1745273463302,-891.42,0.00043835,7]
[358572745,1745273463311,-500.0,0.00043835,7]
[358572746,1745273463321,-209.126942,0.00043835,14]
[358572747,1745273463331,-1959.65,0.00043835,7]
[358572748,1745273463340,-500.0,0.00043835,7]
[358572749,1745273463349,-500.0,0.00043835,7]
[358572750,1745273463359,-511.37,0.00043835,7]
[358572751,1745273463368,-804.59,0.00043835,7]
[358572752,1745273463380,-500.0,0.00043835,7]
[358572753,1745273463390,-151.0,0.00043835,14]
[358572754,1745273463400,-2145.1,0.00043835,7]
[358572755,1745273463410,-600.20145675,0.00043835,7]
[358572756,1745273463420,-500.0,0.00043835,7]
[358572757,1745273463430,-500.0,0.00043835,7]
[358572758,1745273463439,-500.0,0.00043835,7]
[358572759,1745273463449,-557.82082744,0.00043835,7]
[358572760,1745273463460,-5109.84,0.00043835,7]
[358572761,1745273463470,-500.0,0.00043835,7]
[358572762,1745273463479,-2264.20954301,0.00043835,30]
[358572763,1745273463489,-500.0,0.00043835,7]
[358572764,1745273463499,-500.0,0.00043835,7]
[358572765,1745273463509,-561.55,0.00043835,7]
[358572766,1745273463519,-1484.19,0.00043835,7]
[358572767,1745273463528,-500.0,0.00043835,7]
[358572768,1745273463538,-500.0,0.00043835,7]
[358572769,1745273463548,-500.0,0.00043835,7]
[358572770,1745273463557,-1100.11,0.00043835,7]
[358572771,1745273463567,-859.56,0.00043835,7]
[358572772,1745273463576,-500.0,0.00043835,7]
[358572773,1745273463586,-574.2,0.00043835,7]
[358572774,1745273463596,-500.0,0.00043835,7]
[358572775,1745273463605,-500.0,0.00043835,7]
[358572776,1745273463614,-500.0,0.00043835,7]
[358572777,1745273463624,-500.0,0.00043835,7]
[358572778,1745273463633,-500.0,0.00043835,7]
[358572779,1745273463642,-500.0,0.00043835,7]
[358572780,1745273463651,-500.0,0.00043835,7]
[358572781,1745273463661,-500.0,0.00043835,7]
[358572782,1745273463671,-500.0,0.00043835,7]
[358572783,1745273463680,-500.0,0.00043835,7]
[358572784,1745273463690,-500.0,0.00043835,7]
[358572785,1745273463756,-500.0,0.00043835,7]
[358572786,1745273463765,-500.0,0.00043835,7]
[358572787,1745273463775,-500.0,0.00043835,7]
[358572788,1745273463785,-500.0,0.00043835,7]
[358572789,1745273463794,-500.0,0.00043835,7]
[358572790,1745273463803,-500.0,0.00043835,7]
[358572791,1745273463812,-500.0,0.00043835,7]
[358572792,1745273463822,-500.0,0.00043835,7]
[358572793,1745273463831,-500.0,0.00043835,7]
[358572794,1745273463840,-2581.69,0.00043835,7]
[358572795,1745273463850,-500.0,0.00043835,7]
[358572796,1745273463859,-500.0,0.00043835,7]
[358572797,1745273463869,-500.0,0.00043835,7]
[358572798,1745273463878,-500.0,0.00043835,7]
[358572799,1745273463888,-500.0,0.00043835,7]
[358572800,1745273463897,-500.0,0.00043835,7]
[358572801,1745273463906,-500.0,0.00043835,7]
[358572802,1745273463915,-500.0,0.00043835,7]
[358572803,1745273463924,-312.35,0.00043835,7]
[358572804,1745273463933,-500.0,0.00043835,7]
[358572805,1745273463942,-1348.97,0.00043835,7]
[358572806,1745273463952,-596.37,0.00043835,7]
[358572807,1745273463961,-500.0,0.00043835,7]
[358572808,1745273463970,-2009.27,0.00043835,7]
[358572809,1745273463980,-889.4,0.00043835,7]
[358572810,1745273463989,-868.91,0.00043835,7]
[358572811,1745273463998,-948.97,0.00043835,7]
[358572812,1745273464008,-500.0,0.00043835,7]
[358572813,1745273464017,-500.0,0.00043835,7]
[358572814,1745273464026,-500.0,0.00043835,7]
[358572815,1745273464036,-500.0,0.00043835,7]
[358572816,1745273464046,-500.0,0.00043835,7]
[358572817,1745273464055,-717.21,0.00043835,7]
[358572818,1745273464064,-500.0,0.00043835,7]
[358572819,1745273464074,-1570.7,0.00043835,7]
[358572820,1745273464083,-500.0,0.00043835,7]
[358572821,1745273464092,-151.0,0.00043835,14]
[358572822,1745273464101,-508.17724565,0.00043835,7]
[358572823,1745273464112,-500.0,0.00043835,7]
[358572824,1745273464121,-500.0,0.00043835,7]
[358572825,1745273464131,-500.0,0.00043835,7]
[358572826,1745273464141,-1677.09,0.00043835,7]
[358572827,1745273464151,-1058.05,0.00043835,7]
[358572828,1745273464160,-500.0,0.00043835,7]
[358572829,1745273464169,-298.054928,0.00043835,14]
[358572830,1745273464179,-1248.18,0.00043835,7]
[358572831,1745273464188,-500.0,0.00043835,7]
[358572832,1745273464197,-508.66,0.00043835,7]
[358572833,1745273464207,-500.0,0.00043835,7]
[358572834,1745273464217,-500.0,0.00043835,7]
[358572835,1745273464226,-500.0,0.00043835,7]
[358572836,1745273464236,-500.0,0.00043835,7]
[358572837,1745273464247,-616.38,0.00043835,7]
[358572838,1745273464256,-2278.19,0.00043835,7]
[358572839,1745273464266,-1336.46,0.00043835,7]
[358572840,1745273464275,-2099.91,0.00043835,7]
[358572841,1745273464285,-500.0,0.00043835,7]
[358572842,1745273464294,-500.0,0.00043835,7]
[358572843,1745273464304,-500.0,0.00043835,7]
[358572844,1745273464313,-500.0,0.00043835,7]
[358572845,1745273464323,-500.0,0.00043835,7]
[358572846,1745273464332,-502.3897624,0.00043835,7]
[358572847,1745273464342,-1053.78,0.00043835,7]
[358572848,1745273464351,-2998.83,0.00043835,7]
[358572849,1745273464361,-831.47,0.00043835,7]
[358572850,1745273464371,-500.0,0.00043835,7]
[358572851,1745273464383,-1357.54,0.00043835,7]
[358572852,1745273464393,-500.0,0.00043835,7]
[358572853,1745273464402,-500.0,0.00043835,7]
[358572854,1745273464411,-500.0,0.00043835,7]
[358572855,1745273464422,-238.4955,0.00043835,14]
[358572856,1745273464432,-743.94,0.00043835,7]
[358572857,1745273464442,-1579.09,0.00043835,7]
[358572858,1745273464452,-500.0,0.00043835,7]
[358572859,1745273464463,-2781.12,0.00043835,7]
[358572860,1745273464473,-1075.24,0.00043835,7]
[358572861,1745273464483,-500.0,0.00043835,7]
[358572862,1745273464492,-592.06,0.00043835,7]
[358572863,1745273464502,-530.06453537,0.00043835,7]
[358572864,1745273464512,-500.0,0.00043835,7]
[358572865,1745273464521,-500.0,0.00043835,7]
[358572866,1745273464531,-575.54,0.00043835,7]
[358572867,1745273464540,-1561.76,0.00043835,7]
[358572868,1745273464548,-1637.73,0.00043835,7]
[358572869,1745273464557,-1456.28,0.00043835,7]
[358572870,1745273464566,-500.0,0.00043835,7]
[358572871,1745273464575,-500.0,0.00043835,7]
[358572872,1745273464584,-2605.24,0.00043835,7]
[358572873,1745273464593,-500.0,0.00043835,7]
[358572874,1745273464602,-853.74,0.00043835,7]
[358572875,1745273464612,-500.0,0.00043835,7]
[358572876,1745273464621,-2212.34,0.00043835,7]
[358572877,1745273464630,-500.0,0.00043835,7]
[358572878,1745273464640,-2220.57,0.00043835,7]
[358572879,1745273464649,-901.27,0.00043835,7]
[358572880,1745273464659,-598.39,0.00043835,7]
[358572881,1745273464668,-578.81,0.00043835,7]
[358572882,1745273464677,-500.0,0.00043835,7]
[358572883,1745273464687,-500.0,0.00043835,7]
[358572884,1745273464696,-500.0,0.00043835,7]
[358572885,1745273464706,-500.0,0.00043835,7]
[358572886,1745273464715,-500.0,0.00043835,7]
[358572887,1745273464725,-500.0,0.00043835,7]
[358572888,1745273464736,-1275.11,0.00043835,7]
[358572889,1745273464745,-590.2124972,0.00043835,7]
[358572890,1745273464755,-500.0,0.00043835,7]
[358572891,1745273464764,-500.0,0.00043835,7]
[358572892,1745273464774,-500.0,0.00043835,7]
[358572893,1745273464783,-2355.08,0.00043835,7]
[358572894,1745273464793,-567.84039911,0.00043835,7]
[358572895,1745273464802,-500.0,0.00043835,7]
[358572896,1745273464812,-1605.45,0.00043835,7]
[358572897,1745273464822,-2547.52,0.00043835,7]
[358572898,1745273464831,-500.0,0.00043835,7]
[358572899,1745273464841,-500.0,0.00043835,7]
[358572900,1745273464850,-500.0,0.00043835,7]
[358572901,1745273464860,-500.0,0.00043835,7]
[358572902,1745273464869,-500.0,0.00043835,7]
[358572903,1745273464879,-516.33079572,0.00043835,7]
[358572904,1745273464889,-500.0,0.00043835,7]
[358572905,1745273464899,-500.0,0.00043835,7]
[358572906,1745273464909,-1104.86,0.00043835,7]
[358572907,1745273464919,-500.0,0.00043835,7]
[358572908,1745273464929,-500.0,0.00043835,7]
[358572909,1745273464939,-501.62396758,0.00043835,2]
[358572910,1745273464949,-2642.88,0.00043835,7]
[358572911,1745273464960,-737.39,0.00043835,7]
[358572912,1745273464970,-500.0,0.00043835,7]
[358572913,1745273464980,-1339.26,0.00043835,7]
[358572914,1745273464990,-525.31475404,0.00043835,7]
[358572915,1745273465000,-500.0,0.00043835,7]
[358572916,1745273465010,-1748.44,0.00043835,2]
[358572917,1745273465019,-500.0,0.00043835,2]
[358572918,1745273465030,-511.96903733,0.00043835,7]
[358572919,1745273465040,-500.0,0.00043835,7]
[358572920,1745273465050,-442.89519361,0.00043835,7]
[358572921,1745273465060,-500.0,0.00043835,7]
[358572922,1745273465070,-508.29858572,0.00043835,2]
[358572923,1745273465079,-518.67724656,0.00043835,7]
[358572924,1745273465089,-500.0,0.00043835,7]
[358572925,1745273465099,-662.24,0.00043835,7]
[358572926,1745273465109,-500.0,0.00043835,7]
[358572927,1745273465119,-500.0,0.00043835,7]
[358572928,1745273465128,-504.29347909,0.00043835,7]
[358572929,1745273465138,-1174.25,0.00043835,7]
[358572930,1745273465148,-798.15,0.00043835,7]
[358572931,1745273465157,-354.20225919,0.00043835,7]
[358572932,1745273465167,-500.0,0.00043835,2]
[358572933,1745273465177,-500.0,0.00043835,7]
[358572934,1745273465187,-500.0,0.00043835,2]
[358572935,1745273465197,-5495.09,0.00043835,7]
[358572936,1745273465206,-500.0,0.00043835,7]
[358572937,1745273465216,-500.0,0.00043835,7]
[358572938,1745273465226,-500.0,0.00043835,7]
[358572939,1745273465236,-707.27,0.00043835,7]
[358572940,1745273465246,-500.0,0.00043835,5]
[358572941,1745273465255,-500.0,0.00043835,7]
[358572942,1745273465265,-1480.63,0.00043835,7]
[358572943,1745273465275,-508.55739868,0.00043835,7]
[358572944,1745273465285,-500.0,0.00043835,7]
[358572945,1745273465295,-1438.44,0.00043835,7]
[358572946,1745273465304,-1216.01,0.00043835,7]
[358572947,1745273465315,-166.38,0.00043835,30]
[358572948,1745273465324,-151.0,0.00043836,14]
[358572949,1745273465333,-2000.0,0.00043836,2]
[358572950,1745273465343,-180.0,0.00043836,10]
[358572951,1745273465352,-150.0,0.00043836,2]
[358572952,1745273465362,-3875.31239276,0.00044,120]
[358572953,1745273465371,-167.6636,0.00044088,30]
[358572954,1745273465384,-200.0,0.00044151,14]
[358572955,1745273465393,-1555.97,0.00044154,2]
[358572956,1745273465403,-600.0,0.00044189,120]
[358572957,1745273465412,-2000.0,0.00044274,120]
[358572958,1745273465422,-170.22702337,0.00044283,28]
[358572959,1745273465431,-167.6636,0.00044288,30]
[358572960,1745273465442,-4874.6094583,0.0004434,2]
[358572961,1745273465452,-13351.74163476,0.00044348,18]
[358572962,1745273465462,-151.0,0.00044353,14]
[358572963,1745273465472,-151.0,0.00044353,14]
[358572964,1745273465482,-151.0,0.00044353,14]
[358572965,1745273465502,-151.0,0.00044353,14]
[358572966,1745273465513,-151.0,0.00044353,14]
[358572967,1745273465524,-151.0,0.00044353,14]
[358572968,1745273465534,-151.0,0.00044353,14]
[358572969,1745273465544,-183.897924,0.00044353,14]
[358572970,1745273465554,-183.897924,0.00044353,14]
[358572971,1745273465565,-151.0,0.00044353,14]
[358572972,1745273465575,-151.0,0.00044353,14]
[358572973,1745273465587,-79516.286428,0.0004437,10]
[358572974,1745273465598,-500.0,0.00044382,30]
[358572975,1745273465609,-500.0,0.00044382,30]
[358572976,1745273465619,-151.0,0.00044382,14]
[358572977,1745273465630,-151.0,0.00044382,14]
[358572978,1745273465640,-155.996402,0.00044382,14]
[358572979,1745273465651,-151.0,0.00044382,14]
[358572980,1745273465661,-500.0,0.00044382,30]
[358572981,1745273465671,-500.0,0.00044382,30]
[358572982,1745273465682,-100000.0,0.00044383,2]
[358572983,1745273465692,-1656.741814,0.00044383,7]
[358572984,1745273465702,-500.406308,0.00044383,7]
[358572985,1745273465712,-151.0,0.00044383,14]
[358572986,1745273465722,-500.0,0.00044383,7]
[358572987,1745273465731,-612.99561627,0.00044383,2]
[358572988,1745273465741,-168.244593,0.00044383,14]
[358572989,1745273465751,-168.244593,0.00044383,14]
[358572990,1745273465761,-500.0,0.00044383,7]
[358572991,1745273465771,-500.0,0.00044383,7]
[358572992,1745273465780,-500.0,0.00044383,7]
[358572993,1745273465791,-529.16074734,0.00044383,7]
[358572994,1745273465800,-500.0,0.00044383,7]
[358572995,1745273465810,-500.0,0.00044383,7]
[358572996,1745273465820,-500.0,0.00044383,7]
[358572997,1745273465830,-500.0,0.00044383,7]
[358572998,1745273465840,-500.0,0.00044383,7]
[358572999,1745273465850,-500.0,0.00044383,7]
[358573000,1745273465859,-500.0,0.00044383,7]
[358573001,1745273465870,-500.0,0.00044383,7]
[358573002,1745273465880,-1577.55411,0.00044383,14]
[358573003,1745273465891,-1577.55411,0.00044383,14]
[358573004,1745273465900,-500.0,0.00044383,7]
[358573005,1745273465910,-500.0,0.00044383,7]
[358573006,1745273465921,-500.0,0.00044383,7]
[358573007,1745273465931,-500.0,0.00044383,7]
[358573008,1745273465941,-500.0,0.00044383,7]
[358573009,1745273465951,-500.0,0.00044383,7]
[358573010,1745273465962,-500.0,0.00044383,7]
[358573011,1745273465971,-864.57,0.00044383,7]
[358573012,1745273465982,-500.0,0.00044383,7]
[358573013,1745273465992,-500.0,0.00044383,7]
[358573014,1745273466002,-534.86518278,0.00044383,7]
[358573015,1745273466012,-500.0,0.00044383,7]
[358573016,1745273466022,-500.0,0.00044383,7]
[358573017,1745273466032,-500.0,0.00044383,7]
[358573018,1745273466042,-500.0,0.00044383,7]
[358573019,1745273466051,-500.0,0.00044383,7]
[358573020,1745273466062,-500.0,0.00044383,7]
[358573021,1745273466073,-500.0,0.00044383,7]
[358573022,1745273466084,-500.0,0.00044383,7]
[358573023,1745273466096,-500.0,0.00044383,7]
[358573024,1745273466107,-500.0,0.00044383,7]